fUSD/lending_fUSD_20250327
["ID","MTS","AMOUNT","RATE_DAILY","PERIOD"]
[356743514,1743083836857,-154.59,0.00033242,2]
[356743515,1743083837032,-154.59,0.00033352,2]
[356743516,1743083837065,-154.59,0.00033462,2]
[356743517,1743083837091,-2332.34,0.00033571,2]
[356743518,1743083837117,-154.59,0.00033573,2]
[356743519,1743083837142,-2663.44,0.000336,2]
[356743520,1743083837167,-154.59,0.00033683,2]
[356743521,1743083837193,-154.59,0.00033794,2]
[356743522,1743083837220,-154.59,0.00033904,2]
[356743523,1743083837247,-154.59,0.00034015,2]
[356743524,1743083837275,-154.59,0.00034125,2]
[356743525,1743083837302,-154.59,0.00034236,2]
[356743526,1743083837328,-154.59,0.00034346,2]
[356743527,1743083837353,-154.59,0.00034456,2]
[356743528,1743083837380,-201.56915136,0.00034521,12]
[356743529,1743083837406,-214.6,0.000347,7]
[356743530,1743083837431,-748.18227548,0.0003517,2]
[356743531,1743083981572,150.0,0.00021917,2]
[356743532,1743083981818,150.0,0.00023287,2]
[356743533,1743083982071,150.0,0.00024657,2]
[356743534,1743083982415,150.0,0.00026027,2]
[356743535,1743083982670,150.0,0.00027397,2]
[356743536,1743083982952,150.0,0.00028767,2]
[356743537,1743084005516,152.871,0.00022877,2]
[356743538,1743084017437,3944.0,0.00022877,2]
[356743539,1743084018039,3942.0,0.00025877,2]
[356743540,1743084024523,151.0,0.00023665,2]
[356743541,1743084031927,2062.742,0.00023665,2]
[356743542,1743084032130,501.81684607,0.00032639,30]
[356743543,1743084033028,2038.0,0.00026665,2]
[356743544,1743084033537,2038.0,0.00029665,2]
[356743545,1743084038489,1429.373,0.00023665,2]
[356743546,1743084039003,1282.0,0.00026665,2]
[356743547,1743084039499,1282.0,0.00029665,2]
[356743548,1743084046697,645.312,0.00024344,2]
[356743549,1743084047205,642.0,0.00027344,2]
[356743550,1743084053281,151.0,0.00024344,2]
[356743551,1743084053865,151.0,0.00027344,2]
[356743552,1743084067235,1422.0,0.00024344,2]
[356743553,1743084067701,1422.0,0.00027344,2]
[356743554,1743084074314,572.0,0.00024344,2]
[356743555,1743084074833,572.0,0.00027344,2]
[356743556,1743084079044,199.7,0.00018561,2]
[356743557,1743084096877,1.002,0.00024344,2]
[356743558,1743084096907,786.998,0.00024344,2]
[356743559,1743084101527,1274.0,0.00024344,2]
[356743560,1743084115360,4088.0,0.00024344,2]
[356743561,1743084121553,1000.0,0.00024658,2]
[356743562,1743084122317,907.0,0.00024344,2]
[356743563,1743084129856,1432.0,0.00024344,2]
[356743564,1743084136873,542.0,0.00024344,2]
[356743565,1743084155600,184.25849052,0.00032639,30]
[356743566,1743084238440,525.55751461,0.00032639,120]
[356743567,1743084267120,152.91,0.00018414,2]
[356743568,1743084276174,175.54,0.00020548,2]
[356743569,1743084280116,500.0,0.00032639,120]
[356743570,1743084280592,508.65835242,0.00032639,120]
[356743571,1743084324546,832.73,0.00016496,2]
[356743572,1743084324749,832.73,0.0001876,2]
[356743573,1743084324963,832.73,0.00021024,2]
[356743574,1743084325186,832.73,0.00023288,2]
[356743575,1743084475562,2000.0,0.00018414,2]
[356743582,1743084631775,-832.73,0.00025552,2]
[356743583,1743084631785,-583.66760633,0.00026101,2]
[356743584,1743084631794,-150.0,0.000262,2]
[356743585,1743084631804,-150.0,0.00026826,2]
[356743586,1743084631814,-151.88,0.00026849,2]
[356743587,1743084631823,-177.00289853,0.00027244,2]
[356743588,1743084631833,-150.0,0.00027343,2]
[356743589,1743084631843,-300.0,0.00027343,2]
[356743590,1743084631852,-788.0,0.00027344,2]
[356743591,1743084631862,-1274.0,0.00027344,2]
[356743592,1743084631871,-3019.76857335,0.00027344,2]
[356743593,1743084631882,-701.2330322,0.00027344,2]
[356743594,1743084631981,-366.99839445,0.00027344,2]
[356743595,1743084631991,-907.0,0.00027344,2]
[356743596,1743084632001,-1432.0,0.00027344,2]
[356743597,1743084632011,-542.0,0.00027344,2]
[356743598,1743084632020,-832.73,0.00027815,2]
[356743599,1743084632030,-150.0,0.00028107,2]
[356743600,1743084632040,-201.56915136,0.000289,8]
[356743601,1743084632049,-2010.35,0.000289,2]
[356743602,1743084632059,-420.0,0.0002955,2]
[356743603,1743084632069,-37.20673787,0.00029892,2]
[356743604,1743084632081,-139.79616065,0.00029892,2]
[356743605,1743084632091,-832.73,0.00030079,2]
[356743606,1743084632100,-150.0,0.00030136,2]
[356743607,1743084632110,-642.0,0.00030344,2]
[356743608,1743084632119,-1422.0,0.00030344,2]
[356743609,1743084632128,-572.0,0.00030344,2]
[356743610,1743084632138,-244.47726091,0.00030344,2]
[356743611,1743084632154,-543.52273909,0.00030344,2]
[356743612,1743084632165,-1274.0,0.00030344,2]
[356743613,1743084632174,-3669.60828399,0.00030344,2]
[356743663,1743084637695,-583.66760633,0.00026673,2]
[356743665,1743084637705,-418.39171601,0.00030344,2]
[356743666,1743084637714,-907.0,0.00030344,2]
[356743667,1743084637724,-1093.87095678,0.00030344,2]
[356743668,1743084637740,-338.12904322,0.00030344,2]
[356743669,1743084637753,-542.0,0.00030344,2]
[356743670,1743084637763,-150.0,0.00031506,2]
[356743671,1743084637773,-7517.765102,0.00031639,7]
[356743672,1743084637782,-2812.825141,0.00031639,7]
[356743673,1743084637793,-297.73788963,0.00031639,7]
[356743674,1743084637921,-610.80749017,0.00031639,7]
[356743677,1743084637933,-521.4511442,0.00031639,7]
[356743679,1743084637942,-587.0,0.00031936,2]
[356743681,1743084637952,-832.73,0.00032343,2]
[356743683,1743084637961,-177.00289852,0.00032539,2]
[356743685,1743084637970,-150.0,0.00032639,2]
[356743687,1743084637980,-675.88,0.00032639,2]
[356743689,1743084637989,-675.88,0.00032639,2]
[356743691,1743084638000,-675.88,0.00032639,2]
[356743693,1743084638009,-675.88,0.00032639,2]
[356743694,1743084638019,-675.88,0.00032639,2]
[356743696,1743084638028,-675.88,0.00032639,2]
[356743698,1743084638037,-675.88,0.00032639,2]
[356743700,1743084638046,-675.88,0.00032639,2]
[356743702,1743084638056,-675.88,0.00032639,2]
[356743704,1743084638066,-675.88,0.00032639,2]
[356743706,1743084638076,-675.88,0.00032639,2]
[356743708,1743084638086,-675.88,0.00032639,2]
[356743710,1743084638096,-675.88,0.00032639,2]
[356743712,1743084638105,-675.88,0.00032639,2]
[356743714,1743084638115,-675.88,0.00032639,2]
[356743716,1743084638125,-675.88,0.00032639,2]
[356743718,1743084638135,-675.88,0.00032639,2]
[356743720,1743084638145,-675.88,0.00032639,2]
[356743722,1743084638154,-675.88,0.00032639,2]
[356743724,1743084638164,-675.88,0.00032639,2]
[356743726,1743084638173,-675.88,0.00032639,2]
[356743728,1743084638182,-675.88,0.00032639,2]
[356743730,1743084638192,-675.88,0.00032639,2]
[356743732,1743084638201,-675.99863513,0.00032639,2]
[356743734,1743084638211,-173.89,0.00032639,2]
[356743736,1743084638222,-2038.0,0.00032665,2]
[356743738,1743084638232,-1282.0,0.00032665,2]
[356743740,1743084638241,-151.88,0.00033328,2]
[356743742,1743084638252,-642.0,0.00033344,2]
[356743744,1743084638262,-1422.0,0.00033344,2]
[356743746,1743084638272,-572.0,0.00033344,2]
[356743748,1743084638282,-788.0,0.00033344,2]
[356743750,1743084638291,-1165.381,0.00033344,2]
[356743752,1743084638302,-4088.0,0.00033344,2]
[356743754,1743084638314,-907.0,0.00033344,2]
[356743756,1743084638324,-1432.0,0.00033344,2]
[356743758,1743084638334,-542.0,0.00033344,2]
[356743760,1743084638343,-9999.99,0.000339,2]
[356743762,1743084638352,-823.0,0.00034514,2]
[356743764,1743084638362,-832.73,0.00034607,2]
[356743766,1743084638372,-500.0,0.00035151,2]
[356743768,1743084638382,-1584.15772452,0.0003517,2]
[356743770,1743084638392,-200.0,0.0003517,2]
[356743772,1743084638401,-2038.0,0.00035665,2]
[356743774,1743084638410,-1282.0,0.00035665,2]
[356743776,1743084638419,-400.7663,0.00036244,2]
[356743778,1743084638428,-382.7381705,0.00036344,2]
[356743947,1743084640078,-583.66760633,0.00027244,2]
[356743949,1743084640088,-259.2618295,0.00036344,2]
[356743951,1743084640098,-11.80664421,0.00036344,2]
[356743953,1743084640111,-458.14335579,0.00036344,2]
[356743955,1743084640121,-322.032,0.00036344,2]
[356743958,1743084640132,-788.0,0.00036344,2]
[356743960,1743084640141,-2892.9,0.00036344,2]
[356743962,1743084640152,-907.0,0.00036344,2]
[356743963,1743084640161,-1430.0,0.00036344,2]
[356743966,1743084640171,-542.0,0.00036344,2]
[356743968,1743084640180,-200.0,0.00036618,2]
[356743970,1743084640190,-158.003,0.00036618,45]
[356743972,1743084640200,-1271.702,0.00036618,45]
[356743974,1743084640210,-150.0,0.00036655,7]
[356743976,1743084640221,-2332.34,0.00036769,2]
[356743978,1743084640233,-832.73,0.00036871,2]
[356743979,1743084640243,-153.44,0.000369,31]
[356743982,1743084640256,-153.44,0.000369,31]
[356743984,1743084640266,-153.44,0.000369,31]
[356743986,1743084640275,-600.0,0.00036904,2]
[356743987,1743084640284,-6602.47414126,0.00037207,2]
[356743990,1743084640296,-3891.6345136,0.00037207,2]
[356743992,1743084640308,-4019.09127962,0.00037207,2]
[356743994,1743084640320,-315.6,0.00037207,2]
[356743996,1743084640331,-321.71950305,0.00037207,2]
[356744051,1743084643093,-8749.48056247,0.00037207,2]
[356744052,1743084643104,-207.13,0.00037217,120]
[356744053,1743084643114,-560.0,0.000373,2]
[356744054,1743084643123,-2663.44,0.000374,2]
[356744055,1743084643134,-2751.0,0.00038027,120]
[356744056,1743084643143,-153.59,0.00038155,2]
[356744057,1743084643153,-150.0,0.00038284,2]
[356744058,1743084643162,-2332.34,0.00038367,2]
[356744059,1743084643172,-496.37,0.00038504,2]
[356744060,1743084643182,-2038.0,0.00038665,2]
[356744061,1743084643191,-300.0,0.00038798,7]
[356744062,1743084643200,-300.98357939,0.00038798,7]
[356744063,1743084643210,-312.1044,0.00038888,30]
[356744064,1743084643220,-683.11333797,0.00039135,2]
[356744065,1743084643271,-149.61666203,0.00039135,2]
[356744066,1743084643281,-460.02965093,0.00039202,2]
[356744067,1743084643291,-4037.59999993,0.00039275,11]
[356744068,1743084643301,-3467.14516519,0.00039293,11]
[356744070,1743084646221,-744.81021422,0.0003,7]
[356744073,1743084646235,-1024.74138106,0.0003,7]
[356744074,1743084646246,-1303.17693193,0.0003,7]
[356744075,1743084646258,-8312.48845889,0.0003,7]
[356744078,1743084646270,-4333.47544708,0.0003,7]
[356744080,1743084646281,-2456.60000255,0.0003,7]
[356744082,1743084646295,-1004.12686198,0.0003,7]
[356744084,1743084646307,-15038.58070229,0.0003,7]
[356744085,1743084646317,-3663.58929771,0.00039293,11]
[356744086,1743084646328,-756.78063558,0.00039293,11]
[356744087,1743084646339,-612.48490152,0.00039293,11]
[356744088,1743084646348,-2422.32973919,0.00039302,11]
[356744089,1743084646363,-228.09329,0.00037031,2]
[356744090,1743084646373,-6077.67026081,0.00039302,11]
[356744092,1743084646383,-150.0,0.00039307,2]
[356744094,1743084646394,-153.59,0.00039414,2]
[356744095,1743084646403,-153.44,0.000396,31]
[356744096,1743084646412,-153.44,0.000396,31]
[356744097,1743084646421,-153.44,0.000396,31]
[356744098,1743084646430,-153.44,0.000396,31]
[356744100,1743084646439,-153.44,0.000396,31]
[356744102,1743084646449,-153.44,0.000396,31]
[356744104,1743084646459,-151.88,0.00039807,2]
[356744106,1743084646467,-405.43,0.00039872,2]
[356744108,1743084646476,-202.77,0.0004,30]
[356744110,1743084646485,-150.0,0.00040329,2]
[356744112,1743084646495,-177.0,0.000404,5]
[356744114,1743084646506,-460.02965089,0.00040502,15]
[356744116,1743084646515,-153.59,0.00040674,2]
[356744118,1743084646525,-1700.84,0.00040983,2]
[356744120,1743084646534,-1852.42,0.00041124,2]
[356744122,1743084646542,-151.0,0.000412,14]
[356744124,1743084646551,-150.0,0.000412,2]
[356744126,1743084646561,-351.83471501,0.000412,2]
[356744128,1743084646570,-150.0,0.000412,2]
[356744130,1743084646580,-351.83471501,0.000412,2]
[356744132,1743084646589,-150.0,0.000412,2]
[356744134,1743084646599,-351.83471501,0.000412,2]
[356744136,1743084646608,-150.0,0.000412,2]
[356744138,1743084646617,-2663.44,0.000413,2]
[356744140,1743084646627,-150.0,0.00041352,2]
[356744142,1743084646636,-832.73,0.00041399,2]
[356744144,1743084646645,-1500.0,0.00041566,60]
[356744146,1743084646654,-2038.0,0.00041665,2]
[356744148,1743084646663,-207.13,0.00041695,120]
[356744150,1743084646672,-460.02965089,0.00041802,15]
[356744152,1743084646682,-153.59,0.00041933,2]
[356744154,1743084646691,-842.5,0.00042203,2]
[356744156,1743084646700,-421.95,0.00042214,2]
[356744158,1743084646710,-153.44,0.000423,33]
[356744160,1743084646720,-153.44,0.000423,33]
[356744162,1743084646730,-153.44,0.000423,33]
[356744164,1743084646739,-153.44,0.000423,33]
[356744166,1743084646748,-153.44,0.000423,33]
[356744168,1743084646759,-153.44,0.000423,33]
[356744170,1743084646768,-150.0,0.00042375,2]
[356744171,1743084646777,-151.0,0.000424,14]
[356744174,1743084646786,-250.0,0.00042526,2]
[356744175,1743084646795,-202.02,0.00042669,2]
[356744177,1743084646804,-1000.0,0.000427,2]
[356744179,1743084646814,-1400.0,0.00043,10]
[356744182,1743084646823,-460.02965089,0.00043101,15]
[356744183,1743084646833,-153.59,0.00043193,2]
[356744185,1743084646842,-150.0,0.00043397,2]
[356744188,1743084646851,-1910.3727595,0.0004356,2]
[356744189,1743084646861,-832.73,0.00043663,2]
[356744191,1743084646870,-2000.0,0.000438,2]
[356744194,1743084646880,-2000.0,0.000438,2]
[356744195,1743084646889,-501.58592239,0.00043973,10]
[356744198,1743084646902,-500.0,0.00043973,10]
[356744200,1743084646912,-502.71159196,0.00043973,10]
[356744202,1743084646921,-151.0,0.00044,14]
[356744204,1743084646933,-151.0,0.00044,14]
[356744206,1743084646943,-2999.98,0.00044,2]
[356744208,1743084646955,-3000.0,0.00044,2]
[356744210,1743084646967,-3000.0,0.00044,2]
[356744213,1743084646979,-3000.0,0.00044,2]
[356744215,1743084646991,-567.97111582,0.00044,2]
[356744217,1743084647005,-602.0,0.00044,2]
[356744220,1743084647016,-1830.02888418,0.00044,2]
[356744222,1743084647026,-1469.33,0.00044,2]
[356744224,1743084647037,-1745.87212176,0.00044,30]
[356744226,1743084647049,-500.0,0.00044,120]
[356744228,1743084647060,-500.0,0.00044,120]
[356744230,1743084647072,-500.0,0.00044,120]
[356744233,1743084647083,-500.0,0.00044,120]
[356744235,1743084647093,-519.0,0.00044,120]
[356744237,1743084647104,-1109.86457147,0.00044,5]
[356744239,1743084647118,-3907.57156351,0.00044,5]
[356744241,1743084647129,-500.0,0.00044,120]
[356744244,1743084647139,-500.0,0.00044,120]
[356744246,1743084647151,-500.0,0.00044,120]
[356744248,1743084647162,-774.22560022,0.00044,120]
[356744251,1743084647178,-113.77439978,0.00044,120]
[356744253,1743084647189,-500.0,0.00044,120]
[356744255,1743084647199,-675.0,0.00044,120]
[356744257,1743084647210,-500.0,0.00044,120]
[356744259,1743084647221,-500.0,0.00044,120]
[356744261,1743084647234,-500.0,0.00044,120]
[356744263,1743084647244,-500.0,0.00044,120]
[356744265,1743084647254,-500.0,0.00044,120]
[356744267,1743084647264,-409.87772158,0.00044,120]
[356744270,1743084647278,-90.12227842,0.00044,120]
[356744271,1743084647289,-409.87772158,0.00044,120]
[356744299,1743084690137,326.14,0.00013699,2]
[356744300,1743084690526,326.14,0.00013699,2]
[356744301,1743084690887,326.14,0.00013699,2]
[356744302,1743084691541,326.14,0.00013699,2]
[356744303,1743084692376,326.14,0.00013699,2]
[356744304,1743084692879,326.14,0.00013699,2]
[356744305,1743084693279,326.14,0.00013699,2]
[356744306,1743084693708,326.14,0.00013699,2]
[356744307,1743084694046,326.14,0.00013699,2]
[356744308,1743084694419,326.14,0.00013699,2]
[356744309,1743084694957,326.14,0.00013699,2]
[356744310,1743084695359,326.14,0.00013699,2]
[356744311,1743084695761,326.14,0.00013699,2]
[356744312,1743084696822,326.14,0.00013699,2]
[356744313,1743084697176,326.14,0.00013699,2]
[356744314,1743084697590,326.14,0.00013699,2]
[356744315,1743084697991,326.14,0.00013699,2]
[356744316,1743084698418,326.14,0.00013699,2]
[356744317,1743084698801,326.14,0.00013699,2]
[356744318,1743084699204,326.20272435,0.00013699,2]
[356744319,1743084857131,-300.0,0.00027243,2]
[356744320,1743084857152,-7027.482,0.00027244,2]
[356744321,1743084857173,-500.0,0.00027244,2]
[356744322,1743084857195,-150.0,0.00029941,2]
[356744323,1743084857217,-150.0,0.00029968,2]
[356744324,1743084857237,-5872.518,0.0003,2]
[356744325,1743085214467,892.55928113,0.00032639,45]
[356744326,1743085224594,250.0,0.00025,2]
[356744329,1743085507936,2537.76927565,0.00015,2]
[356744330,1743085507967,25000.0,0.00015,2]
[356744331,1743085507999,25000.0,0.00015,2]
[356744332,1743085553300,-14000.0,0.00015,2]
[356744333,1743085557032,-250.0,0.0001489,2]
[356744337,1743085756794,327.84,0.00024732,120]
[356744342,1743085781118,-166.66666668,0.00014795,2]
[356744343,1743085781148,-525.59730418,0.0001489,2]
[356744344,1743085781176,-150.0,0.00014895,2]
[356744345,1743085781207,-300.0,0.00014899,2]
[356744346,1743085781238,-2115.62205196,0.000149,2]
[356744347,1743085781272,-3257.88602282,0.000149,2]
[356744348,1743085781304,-1653.97392522,0.000149,2]
[356744349,1743085781333,-198.7375864,0.000149,2]
[356744350,1743085781360,-1405.1745112,0.000149,2]
[356744351,1743085781393,-3257.88602282,0.000149,2]
[356744352,1743085781425,-1348.62103684,0.000149,2]
[356744353,1743085781455,-208.25482654,0.000149,2]
[356744354,1743085781484,-1701.01015944,0.000149,2]
[356744355,1743085781518,-1819.27198777,0.000149,2]
[356744366,1743085831974,-1446.16188654,0.000149,2]
[356744367,1743085831985,-179.72549637,0.000149,2]
[356744368,1743085831995,-54.00739371,0.0001495,2]
[356744369,1743085832007,-95.99260629,0.0001495,2]
[356744370,1743085832017,-150.0,0.00014999,2]
[356744371,1743085832027,-150.0,0.00014999,2]
[356744372,1743085832037,-150.0,0.00014999,2]
[356744373,1743085832047,-150.0,0.00014999,2]
[356744374,1743085832057,-150.0,0.00014999,2]
[356744375,1743085832066,-150.0,0.00014999,2]
[356744376,1743085832076,-150.0,0.00014999,2]
[356744377,1743085832086,-150.0,0.00014999,2]
[356744378,1743085832095,-150.0,0.00014999,2]
[356744379,1743085832104,-150.0,0.00014999,2]
[356744380,1743085832114,-150.0,0.00014999,2]
[356744381,1743085832123,-150.0,0.00014999,2]
[356744382,1743085832133,-150.0,0.00014999,2]
[356744383,1743085832142,-150.0,0.00014999,2]
[356744384,1743085832153,-3680.46266187,0.00015,2]
[356744385,1743085832165,-6374.74,0.00015,2]
[356744386,1743085832177,-571.54664706,0.00015,2]
[356744387,1743085832189,-8500.0,0.00015,2]
[356744388,1743085832201,-756.79311258,0.00015,2]
[356744391,1743085837868,-488.59085782,0.00015,2]
[356744392,1743085837881,-1638.65078962,0.00015,2]
[356744393,1743085837893,-2292.245,0.00015,2]
[356744394,1743085838043,-1894.95,0.00015,2]
[356744423,1743085840165,-3736.15535705,0.00015,2]
[356744427,1743085840256,-771.89887101,0.00015,2]
[356744429,1743085840267,-2152.99746996,0.00015,2]
[356744541,1743085843056,-44894.13662293,0.00015,2]
[356744650,1743085845879,-3483.23807632,0.00015,2]
[356744652,1743085845896,-30643.72508803,0.00015,2]
[356744659,1743085846049,-4734.90622024,0.00015,2]
[356746708,1743086776739,153.67639,0.00015,13]
[356746709,1743086972224,-313.330207,0.00014824,2]
[356746710,1743086972253,-150.0,0.00014899,2]
[356746711,1743086972282,-293.878,0.000149,2]
[356746712,1743086972309,-2261.33870656,0.000149,2]
[356746713,1743086972343,-3018.54691356,0.000149,2]
[356746715,1743086972380,-2623.37957988,0.000149,2]
[356746717,1743086972407,-166.05748824,0.000149,2]
[356746718,1743086972438,-158.8258547,0.000149,2]
[356746720,1743086972473,-70.28399074,0.000149,2]
[356746721,1743086972507,-3018.54691356,0.000149,2]
[356746722,1743086972545,-3018.54691356,0.000149,2]
[356746723,1743086972578,-3018.54691356,0.000149,2]
[356746724,1743086972611,-3018.54691356,0.000149,2]
[356746725,1743086972644,-3018.54691356,0.000149,2]
[356746726,1743086972676,-3018.54691356,0.000149,2]
[356746727,1743086972709,-3018.54691356,0.000149,2]
[356746728,1743086972748,-3018.54691356,0.000149,2]
[356746729,1743086997246,-500.0,0.00014899,2]
[356746731,1743086997275,-275.12636901,0.00014899,2]
[356746738,1743087032365,-1290.249631,0.00014725,2]
[356746739,1743087032375,-370.27643251,0.00014741,2]
[356746740,1743087032384,-300.0,0.000148,2]
[356746741,1743087032394,-224.87363099,0.00014899,2]
[356746742,1743087032403,-173.51909703,0.00014899,2]
[356746743,1743087032412,-500.0,0.00014899,2]
[356746744,1743087032422,-500.0,0.00014899,2]
[356746745,1743087032431,-500.0,0.00014899,2]
[356746746,1743087032440,-500.0,0.00014899,2]
[356746747,1743087032449,-500.0,0.00014899,2]
[356746748,1743087032458,-500.0,0.00014899,2]
[356746749,1743087032467,-500.0,0.00014899,2]
[356746750,1743087032477,-500.0,0.00014899,2]
[356746751,1743087032487,-1253.65783351,0.000149,2]
[356746752,1743087032498,-4037.00000004,0.000149,2]
[356746753,1743087032509,-1239.81045432,0.000149,2]
[356746754,1743087032521,-1199.03640389,0.000149,2]
[356746755,1743087032532,-949.94196682,0.000149,2]
[356746756,1743087032543,-550.05803318,0.000149,2]
[356746777,1743087038163,-892.25232706,0.000149,2]
[356746778,1743087038177,-543.83467452,0.000149,2]
[356746779,1743087038196,-1249.815,0.000149,2]
[356746780,1743087038390,-1436.48165738,0.000149,2]
[356746782,1743087040406,-89630.42428021,0.000149,2]
[356746783,1743087040417,-4007.78771392,0.000149,2]
[356746784,1743087040427,-157.55338934,0.000149,2]
[356746785,1743087040437,-153.39961263,0.000149,2]
[356746786,1743087040447,-2411.0,0.00014959,2]
[356746787,1743087040456,-500.0,0.00014973,2]
[356746788,1743087040466,-293.15987284,0.00014991,2]
[356746789,1743087040475,-1000.0,0.00014999,2]
[356746790,1743087040485,-4839208.87398337,0.00015,2]
[356746791,1743087040500,-768.69330856,0.00015,2]
[356746792,1743087040513,-657.22944001,0.00015,2]
[356746793,1743087040785,-1705.35809573,0.00015,2]
[356746796,1743087040797,-11120.48235854,0.00015,2]
[356746812,1743087043681,-66657.64910273,0.00015,2]
[356746813,1743087043692,-25186.3396482,0.00015,2]
[356746840,1743087046194,-454.0859,0.00015,2]
[356746841,1743087046243,-777.71508107,0.00015,2]
[356746842,1743087046488,-3900.72387982,0.00015,2]
[356746843,1743087046545,-2224.43859274,0.00015,2]
[356746861,1743087082130,153.67639,0.0001735,18]
[356746862,1743087082159,153.67639,0.0001985,23]
[356746864,1743087490174,-7168.813929,0.00014725,2]
[356746865,1743087490198,-7227.3856,0.000148,2]
[356746866,1743087490220,-224.0,0.00014899,2]
[356746867,1743087490242,-6812.21577829,0.000149,2]
[356746868,1743087490265,-9093.0084,0.000149,2]
[356746869,1743087490288,-284.6272036,0.000149,2]
[356746870,1743087490310,-3145.2551,0.000149,2]
[356746871,1743087490332,-1296.8123,0.000149,2]
[356746872,1743087490354,-153.39961261,0.000149,2]
[356746873,1743087490376,-7734.3125422,0.000149,2]
[356746874,1743087490399,-500.0,0.00014973,2]
[356746875,1743087490421,-500.0,0.00014973,2]
[356746876,1743087490443,-151.0,0.00014991,2]
[356746877,1743087490466,-574.83545523,0.00014999,2]
[356746878,1743087490493,-123741.33407907,0.00015,2]
[356746879,1743087495921,-100000.0,0.00015,2]
[356746880,1743087496343,-100000.0,0.00015,2]
[356746881,1743087497032,-100000.0,0.00015,2]
[356746882,1743087498395,-100000.0,0.00015,2]
[356746883,1743087505852,-98000.0,0.00015,2]
[356746884,1743087511152,-150.7605137,0.000147,2]
[356746885,1743087515652,-866.6014863,0.000147,2]
[356746886,1743087515674,-209.5741,0.000149,2]
[356746887,1743087515699,-18923.8244137,0.00015,2]
[356746888,1743087539078,-160.08132431,0.00014571,2]
[356746889,1743087607509,-233.0,0.00014571,2]
[356746890,1743088025673,302.0,0.00032586,30]
[356746891,1743088154772,-150.0,0.00014551,2]
[356746892,1743088171860,-151.06,0.00014551,2]
[356746893,1743088184819,-133.9109691,0.00014551,2]
[356746894,1743088184842,-16.70382002,0.00014571,2]
[356746895,1743088192836,-150.0,0.00014571,2]
[356746901,1743088232451,-313.07886982,0.00014571,2]
[356746902,1743088232460,-617.86380343,0.00014607,2]
[356746903,1743088232472,-2600.59619657,0.00014607,2]
[356746904,1743088232482,-474.47,0.00014607,2]
[356746905,1743088232491,-34016.80960671,0.00014686,2]
[356746906,1743088232502,-485.81557411,0.00014686,2]
[356746907,1743088232513,-5873.01481918,0.00014686,2]
[356746908,1743088232524,-1000.0,0.00014699,2]
[356746909,1743088232533,-166.71499377,0.00014773,2]
[356746910,1743088232546,-166.71499377,0.00014799,2]
[356746911,1743088232556,-1299.44,0.00014806,2]
[356746912,1743088232566,-500.0,0.00014873,2]
[356746913,1743088232576,-150.0,0.00014899,2]
[356746914,1743088232585,-2454.37529189,0.000149,2]
[356746915,1743088232612,-922.54233573,0.000149,2]
[356746916,1743088232623,-2300.20978048,0.000149,2]
[356746917,1743088232772,-329.6976108,0.000149,2]
[356746918,1743088232784,-349.97130778,0.000149,2]